fUST/lending_fUST_20251023
["ID","MTS","AMOUNT","RATE_DAILY","PERIOD"]
[392130157,1761192637825,-16514.91123403,0.00027253,2]
[392130158,1761192637835,-154.081389,0.0002727,2]
[392130159,1761192637845,-155.342351,0.00028063,2]
[392130160,1761192637854,-154.081389,0.00028198,8]
[392130161,1761192637863,-159.018334,0.00028269,2]
[392130162,1761192637872,-155.342351,0.0002885,8]
[392130163,1761192637882,-420.0,0.0002903,2]
[392130164,1761192637891,-183.554,0.00029082,21]
[392130165,1761192637900,-1520.0,0.00029086,2]
[392130166,1761192637910,-155.342351,0.00029182,2]
[392130167,1761192637920,-334.86310709,0.00029229,2]
[392130168,1761192637931,-334.98682425,0.00029256,2]
[392130169,1761192637940,-176.9506704,0.00029256,2]
[392130170,1761192637951,-154.081389,0.0002943,8]
[392130171,1761192637961,-493.06673655,0.00029576,2]
[392130172,1761192637971,-500.0,0.00029674,2]
[392130173,1761192637980,-500.0,0.00029674,2]
[392130174,1761192637989,-500.0,0.00029674,2]
[392130175,1761192637998,-500.0,0.00029674,2]
[392130176,1761192638008,-500.0,0.00029674,2]
[392130177,1761192638017,-500.0,0.00029674,2]
[392130178,1761192638027,-294.41558653,0.00029674,2]
[392130179,1761192638037,-500.0,0.00029674,2]
[392130180,1761192638047,-500.0,0.00029674,2]
[392130181,1761192638056,-638.04691276,0.00029674,2]
[392130182,1761192638066,-500.0,0.00029674,2]
[392130183,1761192638075,-500.0,0.00029674,2]
[392130184,1761192638085,-500.0,0.00029674,2]
[392130185,1761192638095,-500.0,0.00029674,2]
[392130186,1761192638105,-500.0,0.00029674,2]
[392130187,1761192638114,-500.0,0.00029674,2]
[392130188,1761192638124,-500.0,0.00029674,2]
[392130189,1761192638133,-500.0,0.00029674,2]
[392130190,1761192638143,-500.0,0.00029674,2]
[392130191,1761192638152,-500.0,0.00029674,2]
[392130192,1761192638162,-500.0,0.00029674,2]
[392130193,1761192638171,-235.7521116,0.00029674,2]
[392130194,1761192638180,-500.0,0.00029674,2]
[392130195,1761192638190,-500.0,0.00029674,2]
[392130196,1761192638199,-500.0,0.00029674,2]
[392130197,1761192638209,-500.0,0.00029674,2]
[392130198,1761192638221,-500.0,0.00029674,2]
[392130199,1761192638231,-387.07,0.00029676,10]
[392130200,1761192638243,-151.0,0.00029682,30]
[392130201,1761192638253,-151.0,0.00029682,30]
[392130202,1761192638263,-151.0,0.00029682,30]
[392130203,1761192638273,-3376.384662,0.00029682,30]
[392130204,1761192638284,-9151.12088674,0.00029682,2]
[392130205,1761192638299,-38882.15081136,0.00029682,2]
[392130206,1761192638310,-495.70746565,0.00029682,2]
[392130207,1761192638319,-48033.2716981,0.00029686,2]
[392130208,1761192638329,-495.70746565,0.00029686,2]
[392130209,1761192638339,-162.33,0.00029686,3]
[392130210,1761192638349,-487.0,0.00029686,3]
[392130211,1761192638359,-151.0,0.00029686,30]
[392130212,1761192638368,-151.0,0.00029686,30]
[392130213,1761192638378,-151.0,0.00029686,30]
[392130214,1761192638387,-151.0,0.00029686,30]
[392130215,1761192638397,-268.38366,0.00029686,30]
[392130216,1761192638407,-3376.384662,0.00029686,30]
[392130217,1761192638417,-3376.384662,0.00029686,30]
[392130218,1761192638427,-151.0,0.00029692,30]
[392130219,1761192638437,-151.0,0.00029692,30]
[392130220,1761192638446,-151.0,0.00029692,30]
[392130221,1761192638455,-151.0,0.00029692,30]
[392130222,1761192638465,-3376.384662,0.00029692,30]
[392130223,1761192638475,-3376.384662,0.00029692,30]
[392130224,1761192638484,-500.0,0.00029693,30]
[392130225,1761192638494,-500.0,0.00029693,30]
[392130226,1761192638504,-500.0,0.00029693,30]
[392130227,1761192638514,-500.000001,0.00029693,30]
[392130228,1761192638523,-150.0,0.00029695,2]
[392130229,1761192638533,-300.0,0.00029695,5]
[392130230,1761192638542,-450.0,0.00029695,8]
[392130231,1761192638552,-600.0,0.00029695,11]
[392130232,1761192638561,-32567.5826286,0.00029696,2]
[392130233,1761192638571,-150.175,0.00029705,2]
[392130234,1761192638581,-285.4,0.00029705,2]
[392130235,1761192638590,-212.181,0.00029705,2]
[392130236,1761192638600,-632.0,0.00029705,2]
[392130237,1761192638610,-983.0,0.00029705,2]
[392130238,1761192638620,-2165.0,0.00029705,2]
[392130239,1761192638630,-532.57,0.00029705,2]
[392130240,1761192638641,-689.41251366,0.00029749,3]
[392130241,1761192638651,-169.94579756,0.00029749,3]
[392130242,1761192638661,-160.0,0.00029757,4]
[392130243,1761192638670,-5122.949178,0.000299,2]
[392130244,1761192638680,-1128909.21230715,0.0002991,2]
[392130245,1761192638690,-237.76599401,0.00029954,5]
[392130246,1761192638701,-237.75,0.00029964,5]
[392130247,1761192638711,-1000.0,0.00029989,2]
[392130248,1761192638720,-1000.0,0.00029989,2]
[392130249,1761192638730,-1000.0,0.00029989,2]
[392130250,1761192638739,-1007.12169345,0.00029989,2]
[392130251,1761192638841,-750.0,0.00029989,14]
[392130252,1761192638851,-218.043436,0.00029989,17]
[392130253,1761192638862,-154.0,0.0003,2]
[392130254,1761192638872,-1038.999999,0.0003,2]
[392130255,1761192638882,-16230.27387681,0.0003,2]
[392130256,1761192638892,-3435.34370705,0.0003,2]
[392130257,1761192638902,-1190.0,0.0003,2]
[392130258,1761192638912,-160.0,0.00030024,5]
[392130259,1761192638922,-48033.2716981,0.00030107,2]
[392130260,1761192638932,-495.70746565,0.00030107,2]
[392130261,1761192638942,-1408.0,0.00030117,2]
[392130262,1761192638952,-11770.49318678,0.00030173,2]
[392130263,1761192638962,-300.0,0.000302,13]
[392130264,1761192638971,-269.05,0.000302,13]
[392130265,1761192638981,-48033.2716981,0.00030245,2]
[392130266,1761192638991,-495.70746565,0.00030245,2]
[392130267,1761192639000,-96066.5433962,0.00030254,2]
[392130268,1761192639010,-3469.95225955,0.00030254,2]
[392130269,1761192639021,-111495.97659294,0.00030264,2]
[392130880,1761192642333,105207.96169106,0.00035466,30]
[392131008,1761192642931,-3376.384662,0.00029682,30]
[392131010,1761192642941,-3376.384662,0.00029682,30]
[392131012,1761192642950,-3376.384662,0.00029682,30]
[392131015,1761192642959,-3376.384662,0.00029686,30]
[392131018,1761192642968,-3376.384662,0.00029686,30]
[392131020,1761192642977,-3376.384662,0.00029686,30]
[392131023,1761192642986,-3376.384662,0.00029686,30]
[392131026,1761192642995,-3376.384662,0.00029686,30]
[392131029,1761192643005,-3376.384662,0.00029686,30]
[392131032,1761192643017,-3376.384662,0.00029692,30]
[392131035,1761192643026,-3376.384662,0.00029692,30]
[392131037,1761192643036,-3376.384662,0.00029692,30]
[392131038,1761192643045,-3376.384662,0.00029692,30]
[392131040,1761192643055,-3376.384662,0.00029692,30]
[392131042,1761192643064,-3376.38465389,0.00029692,30]
[392131044,1761192643073,-258504.02340706,0.00030264,2]
[392131046,1761192643082,-325.62702993,0.00030273,5]
[392131048,1761192643092,-501.7299485,0.00030273,5]
[392131050,1761192643100,-500.0,0.00030273,5]
[392131052,1761192643109,-280.66926257,0.00030273,5]
[392131054,1761192643118,-500.0,0.00030273,5]
[392131056,1761192643127,-375.74622056,0.00030273,5]
[392131058,1761192643136,-533.34786596,0.00030273,5]
[392131060,1761192643145,-502.35099835,0.00030273,5]
[392131062,1761192643155,-531.18659329,0.00030273,5]
[392131064,1761192643163,-503.69748549,0.00030273,5]
[392131066,1761192643172,-513.46528887,0.00030273,5]
[392131067,1761192643181,-503.94863423,0.00030273,5]
[392131069,1761192643191,-495.70746565,0.0003029,2]
[392131071,1761192643200,-160.0,0.00030291,6]
[392131073,1761192643209,-6879.15,0.000303,7]
[392131075,1761192643221,-155.342351,0.000303,2]
[392131077,1761192643231,-300.0,0.00030395,30]
[392131079,1761192643239,-176.42568848,0.0003043,2]
[392131081,1761192643248,-160.0,0.00030448,2]
[392131083,1761192643257,-160.0,0.00030448,2]
[392131085,1761192643266,-160.0,0.00030448,2]
[392131087,1761192643275,-403.24192968,0.00030448,2]
[392131089,1761192643285,-602.97628364,0.00030544,2]
[392131090,1761192643294,-160.0,0.00030557,7]
[392131092,1761192643304,-160.0,0.00030758,30]
[392131095,1761192643314,-155.342351,0.00030775,8]
[392131096,1761192643323,-168.0,0.0003078,2]
[392131098,1761192643333,-772.17,0.000308,7]
[392131101,1761192643343,-574.32705336,0.00030821,5]
[392131102,1761192643353,-1000.0,0.00030821,5]
[392131105,1761192643362,-160.0,0.00030824,8]
[392131107,1761192643372,-154.081389,0.00030827,5]
[392131108,1761192643381,-4208.0,0.00030893,2]
[392131111,1761192643391,-303.81041056,0.0003099,2]
[392131113,1761192643401,-452.79608647,0.0003099,2]
[392131114,1761192643410,-500.0,0.00031,10]
[392131116,1761192643419,-500.0,0.00031,10]
[392131118,1761192643428,-324.66,0.00031056,3]
[392131120,1761192643438,-160.0,0.0003109,9]
[392131122,1761192643447,-379.1832242,0.00031229,2]
[392131124,1761192643456,-5122.94917797,0.00031267,2]
[392131126,1761192643465,-154.081389,0.00031284,15]
[392131128,1761192643475,-160.0,0.00031357,10]
[392131130,1761192643484,-1502.92984683,0.00031368,5]
[392131132,1761192643493,-587.0,0.0003139,2]
[392131133,1761192643502,-160.0,0.00031623,11]
[392131135,1761192643512,-160.0,0.0003189,12]
[392131138,1761192643522,-1070.88587975,0.00032114,2]
[392131140,1761192643532,-493.06673654,0.00032114,2]
[392131142,1761192643541,-154.081389,0.00032116,5]
[392131144,1761192643551,-318.1926955,0.00032121,2]
[392131146,1761192643560,-160.0,0.00032157,13]
[392131148,1761192643570,-4237.97173586,0.000323,7]
[392131150,1761192643581,-2641.17826414,0.000323,7]
[392131152,1761192643590,-160.0,0.00032423,14]
[392131154,1761192643600,-495.70746565,0.00032452,2]
[392131156,1761192643609,-5000.0,0.00032462,3]
[392131158,1761192643618,-2140.92,0.000325,2]
[392131160,1761192643629,-772.17,0.000326,7]
[392131162,1761192643639,-5122.94917797,0.00032633,2]
[392131164,1761192643648,-160.0,0.0003269,15]
[392131165,1761192643658,-155.342351,0.000327,8]
[392131166,1761192643667,-150.0,0.00032705,2]
[392131167,1761192643676,-150.0,0.00032705,2]
[392131168,1761192643686,-632.0,0.00032705,2]
[392131169,1761192643695,-983.0,0.00032705,2]
[392131170,1761192643704,-2165.0,0.00032705,2]
[392131171,1761192643713,-411.0,0.00032705,2]
[392131172,1761192643723,-3109.33,0.00032876,120]
[392131173,1761192643732,-151.0,0.00032877,30]
[392131174,1761192643741,-151.0,0.00032877,30]
[392131175,1761192643750,-151.0,0.00032877,30]
[392131176,1761192643760,-151.0,0.00032877,30]
[392131177,1761192643769,-151.0,0.00032877,30]
[392131178,1761192643778,-151.0,0.00032877,30]
[392131179,1761192643788,-151.0,0.00032877,30]
[392131180,1761192643797,-151.0,0.00032877,30]
[392131182,1761192643806,-153.337266,0.00032877,30]
[392131183,1761192643815,-500.0,0.00032877,30]
[392131186,1761192643824,-160.0,0.00032956,16]
[392131187,1761192643834,-500.0,0.00033,14]
[392131189,1761192643843,-150.0,0.00033,2]
[392131191,1761192643852,-217.504016,0.00033165,2]
[392131193,1761192643861,-154.081389,0.00033169,15]
[392131195,1761192643870,-164.21812206,0.000332,117]
[392131197,1761192643880,-160.0,0.00033223,17]
[392131199,1761192643889,-162.80351063,0.00033223,5]
[392131201,1761192643898,-423.50334131,0.00033229,120]
[392131203,1761192643908,-154.081389,0.00033404,5]
[392131205,1761192643919,-500.0,0.00033425,30]
[392131207,1761192643928,-7266.8099275,0.00033457,2]
[392131209,1761192643937,-660.7072024,0.00033479,30]
[392131211,1761192643946,-2000.0,0.00033673,15]
[392131213,1761192643956,-3109.33,0.00033698,120]
[392131215,1761192643966,-823.0,0.00033941,2]
[392131218,1761192643976,-500.0,0.00033973,30]
[392131219,1761192643985,-5122.94917797,0.00034,2]
[392131221,1761192643995,-4000.0,0.00034144,30]
[392131223,1761192644003,-179.85611511,0.00034145,12]
[392131225,1761192644013,-495.70746565,0.00034251,2]
[392131227,1761192644023,-503.64332729,0.0003426,5]
[392131229,1761192644034,-1621.4444629,0.00034296,2]
[392131231,1761192644043,-772.17,0.000343,7]
[392131233,1761192644052,-2140.92,0.000343,14]
[392131235,1761192644061,-155.342351,0.00034345,5]
[392131237,1761192644071,-151.0,0.000344,16]
[392131239,1761192644079,-6000.0,0.0003444,30]
[392131241,1761192644089,-403.24192968,0.0003444,30]
[392131243,1761192644098,-500.0,0.0003445,5]
[392131245,1761192644107,-504.74626246,0.0003445,5]
[392131247,1761192644116,-501.06585044,0.0003445,5]
[392131249,1761192644125,-193528.47122557,0.00034452,2]
[392131361,1761193334795,174.003212,0.00013699,2]
[392131362,1761193334987,174.003212,0.00020187,2]
[392131364,1761193418625,709.0,0.0003,120]
[392131528,1761193837902,-549.16453958,0.00024142,2]
[392131529,1761193837912,-1000.0,0.00025,7]
[392131530,1761193837922,-212.73656215,0.00025103,2]
[392131531,1761193837933,-174.003212,0.00026676,2]
[392131532,1761193837943,-251.02914333,0.00027103,2]
[392131533,1761193837953,-198.79012974,0.0002739,2]
[392131534,1761193837962,-150.0,0.0002739,2]
[392131535,1761193837971,-2637.4340779,0.000275,2]
[392131536,1761193837981,-300.0,0.00028499,2]
[392131537,1761193837990,-2009.44855992,0.000285,2]
[392131538,1761193838002,-7990.55144008,0.000285,2]
[392131539,1761193838011,-10000.0,0.000289,2]
[392131540,1761193838021,-500.0,0.00028999,2]
[392131541,1761193838030,-499.32254696,0.00028999,2]
[392131542,1761193838040,-500.0,0.00028999,2]
[392131543,1761193838050,-500.0,0.00028999,2]
[392131544,1761193838060,-500.0,0.00028999,2]
[392131545,1761193838069,-221.1379041,0.00028999,2]
[392131546,1761193838079,-93.73057094,0.00029,2]
[392131548,1761193838091,-9906.26942906,0.00029,2]
[392131550,1761193838100,-289.32172452,0.00029103,2]
[392131551,1761193838109,-169.83,0.00029282,4]
[392131552,1761193838119,-266.54366453,0.00029397,34]
[392131553,1761193838128,-1024.58983561,0.00029472,2]
[392131554,1761193838138,-2167.55844863,0.000295,2]
[392131555,1761193838151,-989.64376497,0.000295,2]
[392131620,1761193846335,-1447.97356344,0.000295,2]
[392132285,1761195037966,-197.67481355,0.00025217,2]
[392132287,1761195037976,-233.25627999,0.00027217,2]
[392132288,1761195037985,-250.557298,0.00027697,2]
[392132289,1761195037995,-268.83774643,0.00029217,2]
[392132290,1761195038006,-5394.82422296,0.000295,2]
[392132291,1761195038015,-300.0,0.00029559,2]
[392132292,1761195038025,-183.555,0.00029561,23]
[392132293,1761195038035,-540.12,0.000296,7]
[392132294,1761195038045,-169.82,0.000296,5]
[392132295,1761195038054,-3344.35463907,0.000298,2]
[392132296,1761195038069,-5405.50915952,0.000298,2]
[392132297,1761195038079,-632.0,0.00029835,2]
[392132298,1761195038088,-983.0,0.00029835,2]
[392132299,1761195038097,-2165.0,0.00029835,2]
[392132300,1761195038106,-500.0,0.00029873,5]
[392132301,1761195038115,-500.0,0.00029873,5]
[392132302,1761195038124,-548.79272722,0.00029873,5]
[392132303,1761195038133,-503.9052104,0.00029873,5]
[392132304,1761195038142,-394.67419375,0.00029879,2]
[392132306,1761195038151,-738.11,0.0002988,10]
[392132308,1761195038160,-615.1,0.0002988,10]
[392132309,1761195038169,-16502.2236934,0.0002988,2]
[392132310,1761195038179,-245.99,0.0002989,3]
[392132311,1761195038188,-737.99,0.0002989,3]
[392132312,1761195038198,-201739.741132,0.0002989,2]
[392132313,1761195038207,-44005.9298491,0.0002989,2]
[392132314,1761195038216,-370000.0,0.000299,2]
[392132315,1761195038226,-5341.47,0.000299,7]
[392132316,1761195038235,-1954.95,0.000299,2]
[392132317,1761195038245,-33623.2901887,0.00029963,2]
[392132318,1761195038255,-501.84822745,0.00029973,5]
[392132319,1761195038264,-502.44266011,0.00029973,2]
[392132320,1761195038274,-504.98604001,0.00029973,5]
[392132321,1761195038283,-500.0,0.00029973,5]
[392132322,1761195038292,-500.0,0.00029973,5]
[392132323,1761195038302,-500.0,0.00029973,5]
[392132324,1761195038311,-500.0,0.00029973,5]
[392132325,1761195038321,-500.84635423,0.00029973,5]
[392132326,1761195038330,-412.56751212,0.00029973,5]
[392132327,1761195038340,-160.20667551,0.00029973,5]
[392132328,1761195038349,-158.60558254,0.00029973,5]
[392132329,1761195038359,-503.06190581,0.00029973,5]
[392132330,1761195038369,-204.40068777,0.00029973,5]
[392132331,1761195038378,-500.0,0.00029973,5]
[392132332,1761195038388,-272.42556192,0.00029973,5]
[392132333,1761195038397,-500.0,0.00029973,5]
[392132334,1761195038407,-500.0,0.00029973,5]
[392132335,1761195038416,-184.75577409,0.00029973,5]
[392132336,1761195038424,-516.60378376,0.00029973,5]
[392132337,1761195038432,-502.38585404,0.00029973,5]
[392132338,1761195038442,-500.0,0.00029973,5]
[392132339,1761195038455,-500.0,0.00029973,5]
[392132340,1761195038464,-5500.74123114,0.0002998,2]
[392132341,1761195038474,-33623.2901887,0.0002999,2]
[392132342,1761195038578,-5500.74123114,0.0002999,2]
[392132343,1761195038588,-239.0,0.0003,2]
[392132344,1761195038598,-48651.46922831,0.0003,15]
[392132345,1761195038607,-175.556451,0.0003,15]
[392132346,1761195038616,-175.556451,0.0003,15]
[392132347,1761195038626,-157.782621,0.0003,15]
[392132348,1761195038636,-157.782621,0.0003,15]
[392132349,1761195038646,-300.0,0.00030089,30]
[392132350,1761195038656,-300.0,0.00030089,30]
[392132351,1761195038666,-1000.0,0.00030136,30]
[392132352,1761195038675,-177.45554296,0.0003014,120]
[392132353,1761195038685,-500.0,0.000303,5]
[392132354,1761195038695,-1000.0,0.0003041,31]
[392132355,1761195038704,-4208.0,0.00030411,2]
[392132356,1761195038714,-1000.0,0.00030421,5]
[392132357,1761195038724,-1025.74586575,0.00030421,5]
[392132358,1761195038734,-403.24192968,0.00030448,2]
[392132359,1761195038744,-160.0,0.00030448,2]
[392132360,1761195038753,-500.0,0.00030475,5]
[392132361,1761195038763,-504.99818396,0.00030475,5]
[392132362,1761195038773,-410.56043603,0.00030521,5]
[392132363,1761195038783,-503.02079103,0.00030521,5]
[392132364,1761195038793,-505.29299139,0.00030521,5]
[392132365,1761195038803,-509.54798201,0.00030521,5]
[392132366,1761195038813,-1000.0,0.00030521,5]
[392132367,1761195038822,-245.40932237,0.00030521,5]
[392132368,1761195038832,-1000.0,0.00030521,5]
[392132369,1761195038842,-1000.0,0.00030521,5]
[392132370,1761195038851,-506.90143914,0.00030521,5]
[392132371,1761195038861,-1000.0,0.00030684,32]
[392132372,1761195038871,-1000.0,0.00030848,5]
[392132373,1761195038880,-1000.0,0.00030958,33]
[392132374,1761195038889,-508.41123959,0.00030968,5]
[392132375,1761195038899,-277.0,0.00031,3]
[392132376,1761195038909,-5500.74123114,0.00031018,2]
[392132377,1761195038919,-1000.0,0.00031023,5]
[392132378,1761195038928,-1500.0,0.00031068,5]
[392132379,1761195038938,-1500.0,0.00031068,5]
[392132380,1761195038948,-961.27968348,0.00031068,5]
[392132381,1761195038957,-304.41921286,0.00031217,2]
[392132382,1761195038967,-1000.0,0.00031232,34]
[392132383,1761195038976,-491.98,0.0003126,3]
[392132384,1761195038985,-517.18018523,0.00031396,5]
[392132385,1761195038994,-1000.0,0.00031506,35]
[392132386,1761195039003,-349.88469963,0.00031571,5]
[392132387,1761195039013,-2000.0,0.00031616,5]
[392132388,1761195039022,-957.44722113,0.00031616,5]
[392132389,1761195039032,-1000.0,0.0003178,36]
[392132390,1761195039043,-420.0,0.00031873,2]
[392132391,1761195039053,-5341.47,0.000319,7]
[392132392,1761195039062,-1954.95,0.000319,2]
[392132393,1761195039071,-180.13074837,0.00031909,8]
[392132394,1761195039080,-1000.0,0.00032054,37]
[392132395,1761195039097,-2500.0,0.00032164,5]
[392132396,1761195039107,-1000.0,0.00032328,38]
[392132397,1761195039117,-1000.0,0.00032602,39]
[392132398,1761195039126,-3000.0,0.00032712,5]
[392132399,1761195039135,-632.0,0.00032835,2]
[392132400,1761195039145,-983.0,0.00032835,2]
[392132401,1761195039155,-1796.79,0.00032835,2]
[392132402,1761195039165,-1000.0,0.00032876,40]
[392132403,1761195039175,-2850.21,0.00032876,120]
[392132404,1761195039185,-500.0,0.00032877,60]
[392132405,1761195039195,-500.0,0.00032877,60]
[392132406,1761195039205,-500.0,0.00032877,60]
[392132407,1761195039215,-500.0,0.00032877,60]
[392132408,1761195039224,-1000.0,0.0003315,41]
[392132409,1761195039234,-174.003212,0.00033165,2]
[392132410,1761195039244,-164.21812205,0.000332,117]
[392132411,1761195039253,-340.0006793,0.00033217,120]
[392132412,1761195039262,-284.74094449,0.0003326,5]
[392132413,1761195039271,-1000.0,0.00033424,42]
[392132414,1761195039280,-2000.0,0.0003369,15]
[392132415,1761195039290,-1000.0,0.00033698,43]
[392132416,1761195039299,-2850.21,0.00033698,120]
[392132417,1761195039310,-1049.9922983,0.00033972,44]
[392132418,1761195039320,-775.0,0.00034,10]
[392132419,1761195039329,-168.0,0.00034153,2]
[392132420,1761195039339,-169.82,0.0003422,11]
[392132421,1761195039348,-20000.0,0.000343,120]
[392132422,1761195039359,-5500.74123114,0.00034342,2]
[392132423,1761195039368,-819.67186848,0.0003435,2]
[392132424,1761195039378,-587.0,0.00034367,2]
[392132425,1761195039387,-5341.47,0.000344,14]
[392132426,1761195039397,-1954.95,0.000344,14]
[392132427,1761195039407,-8749.86379858,0.00034439,2]
[392132428,1761195039417,-491.97,0.00034442,3]
[392132429,1761195039428,-5500.74123114,0.00034442,2]
[392132430,1761195039438,-20000.0,0.0003445,120]
[392132431,1761195039448,-20000.0,0.0003445,120]
[392132432,1761195039461,-40175.819577,0.00034452,120]
[392132433,1761195039471,-500.0,0.00034452,30]
[392132434,1761195039480,-274139.38582876,0.00034452,2]
[392132459,1761195043634,-411.0,0.00029835,2]
[392132460,1761195043648,-512.58,0.0002988,10]
[392132461,1761195043661,-6.37518914,0.00032835,2]
[392132866,1761195349446,200000.00910647,0.00035451,30]
[392132874,1761195848336,338.0,0.000241,2]
[392132884,1761196032648,158.777932,0.00013699,2]
[392132885,1761196032862,158.777932,0.00020187,2]
[392132931,1761196189159,20000.0,0.00030137,120]
[392132962,1761196232271,-523.48608635,0.00025,2]
[392133087,1761196239278,183.36188,0.00035453,30]
[392133164,1761196308377,-243.51391365,0.00025,2]
[392133165,1761196431349,-190.21226506,0.00025026,2]
[392133166,1761196431377,-200.0,0.0002534,2]
[392133167,1761196537414,498.0,0.00030136,120]
[392133168,1761196618843,450.459,0.00030137,120]
[392133170,1761197100551,186.40801976,0.00025304,2]
[392133276,1761197432435,-182.67985937,0.0002588,2]
[392133278,1761197432445,-158.777932,0.00026676,2]
[392133280,1761197432455,-215.56223405,0.0002788,2]
[392133282,1761197432464,-250.557299,0.00028497,2]
[392133284,1761197432474,-8.42267558,0.00028629,2]
[392133287,1761197432492,-684.15855212,0.00028629,2]
[392133289,1761197432501,-266.54366453,0.00029397,34]
[392133291,1761197432511,-169.83,0.000297,5]
[392133293,1761197432519,-300.0,0.00029763,2]
[392133308,1761197432634,-1796.79,0.00029764,2]
[392133310,1761197432644,-411.0,0.00029764,2]
[392133312,1761197432656,-2170.26761011,0.000298,2]
[392133315,1761197432665,-10346.32861748,0.000298,2]
[392133317,1761197432675,-160.0,0.0002981,2]
[392133318,1761197432683,-248.44460874,0.0002988,2]
[392133320,1761197432693,-427.15,0.0002999,10]
[392133322,1761197432702,-355.96,0.0002999,10]
[392133324,1761197432711,-296.63,0.0002999,10]
[392133326,1761197432721,-2033.63,0.00029998,3]
[392133328,1761197432730,-446.15548456,0.00029999,2]
[392133330,1761197432739,-500.0,0.00029999,2]
[392133333,1761197432748,-500.0,0.00029999,2]
[392133335,1761197432757,-500.0,0.00029999,2]
[392133336,1761197432767,-321.9629521,0.00029999,2]
[392133338,1761197432776,-172.57681527,0.00029999,2]
[392133340,1761197432785,-500.0,0.00029999,2]
[392133342,1761197432795,-500.0,0.00029999,2]
[392133345,1761197432804,-500.0,0.00029999,2]
[392133347,1761197432813,-500.0,0.00029999,2]
[392133348,1761197432822,-14831.44337848,0.0003,15]
[392133460,1761197440418,-632.0,0.00029764,2]
[392133461,1761197440428,-819.01066956,0.00029764,2]
[392133462,1761197440440,-163.98933044,0.00029764,2]
[392133463,1761197440450,-262.43675759,0.0003,15]
[392133464,1761197440461,-656.78727858,0.0003,15]
[392133465,1761197440473,-350.0842972,0.0003,15]
[392133531,1761197613467,-200.0,0.000253,2]
[392133538,1761198242247,152.61278046,0.00024599,5]
[392133539,1761198244614,165.52694812,0.00024599,5]
[392133547,1761198437640,1000.0,0.0002534,2]
[392133746,1761198638575,-169.74612532,0.00025376,2]
[392133747,1761198638585,-200.30042788,0.00027376,2]
[392133748,1761198638594,-329.5458215,0.00028571,2]
[392133750,1761198638604,-230.85473044,0.00029376,2]
[392133752,1761198638614,-169.82,0.0002959,5]
[392133754,1761198638624,-1940.0,0.000297,2]
[392133756,1761198638634,-169.82,0.000297,5]
[392133758,1761198638643,-300.0,0.00029747,2]
[392133760,1761198638653,-632.0,0.00029748,2]
[392133762,1761198638662,-983.0,0.00029748,2]
[392133764,1761198638672,-411.0,0.00029748,2]
[392133765,1761198638681,-410.96923656,0.0002978,2]
[392133766,1761198638691,-1024.58983561,0.0002978,2]
[392133767,1761198638700,-6459.01005037,0.000298,2]
[392133768,1761198638710,-1007.48,0.000298,30]
[392133769,1761198638720,-1024.58983559,0.0002981,2]
[392133770,1761198638730,-1024.58983559,0.0002984,2]
[392133771,1761198638739,-1024.58983559,0.0002987,2]
[392133772,1761198638749,-472.73,0.0002987,10]
[392133773,1761198638758,-500.0,0.00029873,5]
[392133774,1761198638768,-500.0,0.00029873,5]
[392133775,1761198638779,-504.99818396,0.00029873,5]
[392133776,1761198638788,-500.0,0.00029873,5]
[392133777,1761198638797,-500.0,0.00029873,5]
[392133778,1761198638807,-503.9052104,0.00029873,5]